bitfinex/quotes_SOLUSD_20241222
["timestamp","ask_amount","ask_price","bid_price","bid_amount"]
[1734898100223,27.46995969,177.54,177.47,27.46995969]
[1734898100421,27.46995969,177.53,177.46,29.02165969]
[1734898100811,27.46995969,177.52,177.46,1.5517]
[1734898101025,27.46995969,177.53,177.46,29.02165969]
[1734898101233,27.46995969,177.52,177.46,1.5517]
[1734898101513,27.46995969,177.53,177.46,29.02165969]
[1734898102938,14.0794,177.57,177.49,27.46995969]
[1734898103125,27.46995969,177.56,177.49,27.46995969]
[1734898103324,27.46995969,177.55,177.48,27.46995969]
[1734898103733,27.46995969,177.56,177.49,27.46995969]
[1734898103943,27.46995969,177.58,177.51,27.46995969]
[1734898104324,27.46995969,177.58,177.5,27.46995969]
[1734898104641,8.55382088,177.64,177.57,27.46995969]
[1734898104642,27.46995969,177.64,177.57,27.46995969]
[1734898104945,27.46995969,177.67,177.6,27.46995969]
[1734898105648,35.98534856,177.68,177.62,27.46995969]
[1734898105831,8.51538887,177.68,177.62,27.46995969]
[1734898106225,8.51538887,177.68,177.57,27.46995969]
[1734898106226,8.51538887,177.68,177.63,27.46995969]
[1734898106427,8.51538887,177.74,177.67,27.46995969]
[1734898106754,8.51538887,177.74,177.7,27.46995969]
[1734898107246,8.51538887,177.74,177.69,27.46995969]
[1734898107422,27.46995969,177.76,177.69,27.46995969]
[1734898107739,8.51538887,177.83,177.66,27.46995969]
[1734898107740,27.46995969,177.73,177.66,27.46995969]
[1734898107927,27.46995969,177.71,177.64,29.07315969]
[1734898108129,27.46995969,177.67,177.64,1.6032]
[1734898108328,27.46995969,177.75,177.58,8.0661]
[1734898108643,27.46995969,177.68,177.61,27.46995969]
[1734898108842,27.46995969,177.66,177.59,27.46995969]
[1734898109248,27.46995969,177.62,177.58,1.6032]
[1734898109449,20.0,177.63,177.58,1.6032]
[1734898109636,27.46995969,177.64,177.58,1.6032]
[1734898110045,27.46995969,177.63,177.58,1.6032]
[1734898110929,27.46995969,177.62,177.58,1.6032]
[1734898111118,27.46995969,177.6,177.53,6.4629]
[1734898111324,27.46995969,177.58,177.52,1.6032]
[1734898111851,27.46995969,177.59,177.52,29.07315969]
[1734898112035,27.46995969,177.58,177.52,1.6032]
[1734898113262,27.46995969,177.57,177.52,1.6032]
[1734898114057,27.46995969,177.57,177.5,27.46995969]
[1734898114241,27.46995969,177.58,177.5,27.46995969]
[1734898114751,27.46995969,177.57,177.5,27.46995969]
[1734898114938,27.46995969,177.53,177.46,27.46995969]
[1734898115136,47.46995969,177.55,177.47,27.46995969]
[1734898115335,27.46995969,177.53,177.46,27.46995969]
[1734898116338,27.46995969,177.53,177.45,29.07315969]
[1734898116662,27.46995969,177.52,177.45,29.07315969]
[1734898116834,27.46995969,177.53,177.45,29.07315969]
[1734898117035,27.46995969,177.55,177.48,27.46995969]
[1734898117241,27.46995969,177.56,177.48,27.46995969]
[1734898117760,27.46995969,177.55,177.48,27.46995969]
[1734898118057,27.46995969,177.52,177.45,29.07315969]
[1734898118252,27.46995969,177.51,177.45,1.6032]
[1734898118433,27.46995969,177.52,177.45,1.6032]
[1734898118853,27.46995969,177.53,177.46,27.46995969]
[1734898119163,27.46995969,177.56,177.49,27.46995969]
[1734898119362,27.46995969,177.55,177.48,27.46995969]
[1734898119667,27.46995969,177.55,177.45,1.6032]
[1734898119668,27.46995969,177.55,177.47,27.46995969]
[1734898120664,27.46995969,177.55,177.48,27.46995969]
[1734898120836,27.46995969,177.56,177.49,27.46995969]
[1734898121362,27.46995969,177.51,177.45,1.6032]
[1734898122067,27.46995969,177.52,177.45,29.07315969]
[1734898122360,27.46995969,177.51,177.45,1.6032]
[1734898122531,20.0,177.57,177.47,27.46995969]
[1734898122731,27.46995969,177.53,177.46,27.46995969]
[1734898123549,27.46995969,177.55,177.47,27.46995969]
[1734898123753,27.46995969,177.55,177.48,27.46995969]
[1734898124853,27.46995969,177.53,177.46,27.46995969]
[1734898125058,27.46995969,177.53,177.45,29.07315969]
[1734898125260,27.46995969,177.5,177.45,1.6032]
[1734898125553,27.46995969,177.49,177.45,1.6032]
[1734898125960,27.46995969,177.57,177.41,6.4629]
[1734898125961,27.46995969,177.47,177.41,6.4629]
[1734898126461,27.46995969,177.48,177.41,33.93285969]
[1734898126976,27.46995969,177.49,177.42,27.46995969]
[1734898127871,27.46995969,177.48,177.41,33.93285969]
[1734898130344,14.0824,177.53,177.41,6.4629]
[1734898130546,27.46995969,177.5,177.43,27.46995969]
[1734898130948,27.46995969,177.53,177.46,27.46995969]
[1734898131270,27.46995969,177.55,177.48,27.46995969]
[1734898131443,27.46995969,177.54,177.46,35.36995969]
[1734898131868,34.6357,177.65,177.51,27.46995969]
[1734898132072,27.46995969,177.59,177.51,27.46995969]
[1734898132366,27.46995969,177.58,177.51,27.46995969]
[1734898132564,27.46995969,177.57,177.5,27.46995969]
[1734898132740,50.01855669,177.66,177.53,27.46995969]
[1734898132741,27.46995969,177.6,177.53,27.46995969]
[1734898132941,27.46995969,177.61,177.54,27.46995969]
[1734898133137,27.46995969,177.6,177.53,27.46995969]
[1734898133342,27.46995969,177.59,177.52,27.46995969]
[1734898133641,27.46995969,177.59,177.48,28.1339]
[1734898133642,27.46995969,177.57,177.5,27.46995969]
[1734898134063,27.46995969,177.58,177.51,27.46995969]
[1734898134377,27.46995969,177.57,177.5,27.46995969]
[1734898135843,27.46995969,177.55,177.48,33.61855969]
[1734898136050,27.46995969,177.54,177.48,6.1486]
[1734898136253,27.46995969,177.53,177.48,6.1486]
[1734898136948,27.46995969,177.52,177.48,6.1486]
[1734898137980,27.46995969,177.51,177.47,1.6562]
[1734898139876,27.46995969,177.53,177.47,1.6562]
[1734898140179,27.46995969,177.54,177.47,1.6562]
[1734898140360,27.46995969,177.56,177.49,27.46995969]
[1734898140569,27.46995969,177.55,177.48,27.46995969]
[1734898141066,27.46995969,177.53,177.47,1.6562]
[1734898141390,27.46995969,177.5,177.43,27.46995969]
[1734898141562,27.46995969,177.47,177.36,10.40150034]
[1734898141762,27.46995969,177.46,177.38,27.46995969]
[1734898141968,27.46995969,177.45,177.38,27.46995969]
[1734898142178,27.46995969,177.46,177.38,27.46995969]
[1734898142689,27.46995969,177.46,177.36,1.6562]
[1734898142690,47.46995969,177.47,177.39,27.46995969]
[1734898142996,27.46995969,177.47,177.39,27.46995969]
[1734898143482,27.46995969,177.46,177.39,27.46995969]
[1734898144562,27.46995969,177.45,177.37,27.46995969]
[1734898145581,27.46995969,177.45,177.36,1.6562]
[1734898145582,27.46995969,177.43,177.36,1.6562]
[1734898145774,27.46995969,177.45,177.37,27.46995969]
[1734898145956,20.0,177.46,177.36,29.12615969]
[1734898145957,27.46995969,177.43,177.36,29.12615969]
[1734898146565,27.46995969,177.45,177.38,27.46995969]
[1734898146888,27.46995969,177.44,177.36,29.12615969]
[1734898147590,27.46995969,177.44,177.37,27.46995969]
[1734898148884,27.46995969,177.45,177.37,27.46995969]
[1734898149087,27.46995969,177.45,177.38,27.46995969]
[1734898149772,27.46995969,177.48,177.41,27.46995969]
[1734898150781,27.46995969,177.49,177.42,27.46995969]
[1734898151093,27.46995969,177.5,177.43,27.46995969]
[1734898151258,27.46995969,177.52,177.45,27.46995969]
[1734898151581,27.46995969,177.54,177.47,27.46995969]
[1734898151770,27.46995969,177.56,177.49,27.46995969]
[1734898151973,27.46995969,177.55,177.48,27.46995969]
[1734898152278,27.46995969,177.56,177.49,27.46995969]
[1734898152473,27.46995969,177.58,177.51,27.46995969]
[1734898152676,27.46995969,177.57,177.5,27.46995969]
[1734898152888,27.46995969,177.55,177.48,27.46995969]
[1734898153089,27.46995969,177.53,177.46,7.9]
[1734898153383,27.46995969,177.53,177.45,35.36995969]
[1734898153584,27.46995969,177.52,177.45,27.46995969]
[1734898153976,27.46995969,177.51,177.44,35.29165969]
[1734898154665,27.46995969,177.52,177.45,27.46995969]
[1734898155084,27.46995969,177.53,177.45,27.46995969]
[1734898155386,27.46995969,177.52,177.45,27.46995969]
[1734898155889,27.46995969,177.51,177.44,35.29165969]
[1734898156195,27.46995969,177.49,177.44,7.8217]
[1734898157197,27.46995969,177.51,177.44,35.29165969]
[1734898157675,27.46995969,177.52,177.44,35.29165969]
[1734898158272,27.46995969,177.51,177.44,35.29165969]
[1734898158479,27.46995969,177.51,177.44,7.8217]
[1734898158682,27.46995969,177.49,177.44,7.8217]
[1734898159580,27.46995969,177.52,177.44,35.29165969]
[1734898160185,27.46995969,177.51,177.44,35.29165969]
[1734898160381,27.46995969,177.49,177.44,7.8217]
[1734898160563,27.46995969,177.5,177.44,7.8217]
[1734898160768,27.46995969,177.51,177.44,7.8217]
[1734898160970,27.46995969,177.51,177.44,35.29165969]
[1734898161300,27.46995969,177.51,177.44,7.8217]
[1734898161469,27.46995969,177.5,177.44,7.8217]
[1734898162085,27.46995969,177.48,177.44,1.6502]
[1734898162285,27.46995969,177.46,177.39,6.1715]
[1734898162486,27.46995969,177.48,177.41,27.46995969]
[1734898162996,27.46995969,177.49,177.41,27.46995969]
[1734898163407,27.46995969,177.49,177.42,27.46995969]
[1734898163575,27.46995969,177.5,177.42,27.46995969]
[1734898163776,27.46995969,177.49,177.41,27.46995969]
[1734898164511,27.46995969,177.47,177.4,27.46995969]
[1734898164992,27.46995969,177.49,177.39,14.0927]
[1734898165199,27.46995969,177.48,177.41,27.46995969]
[1734898166302,27.46995969,177.49,177.41,27.46995969]
[1734898166999,27.46995969,177.48,177.4,27.46995969]
[1734898167204,27.46995969,177.46,177.39,27.46995969]
[1734898167430,27.46995969,177.47,177.39,27.46995969]
[1734898167581,27.46995969,177.46,177.39,27.46995969]
[1734898167976,27.46995969,177.47,177.38,1.6502]
[1734898168183,27.46995969,177.46,177.38,29.12015969]
[1734898169089,27.46995969,177.46,177.39,27.46995969]
[1734898169284,27.46995969,177.47,177.4,27.46995969]
[1734898169605,27.46995969,177.47,177.39,27.46995969]
[1734898169807,27.46995969,177.46,177.39,27.46995969]
[1734898171499,27.46995969,177.46,177.38,29.12015969]
[1734898172105,14.0829,177.52,177.38,29.12015969]
[1734898172106,27.46995969,177.42,177.38,1.6502]
[1734898172436,27.46995969,177.42,177.35,200.0]
[1734898173093,27.46995969,177.42,177.35,227.46995969]
[1734898173809,27.46995969,177.43,177.35,227.46995969]
[1734898174405,27.46995969,177.42,177.35,227.46995969]
[1734898175184,27.46995969,177.41,177.35,200.0]
[1734898175506,27.46995969,177.39,177.35,200.0]
[1734898175695,14.0878,177.46,177.35,200.0]
[1734898175696,27.46995969,177.4,177.35,200.0]
[1734898176219,27.46995969,177.41,177.35,200.0]
[1734898176623,27.46995969,177.43,177.35,227.46995969]
[1734898177498,27.46995969,177.44,177.36,27.46995969]
[1734898177813,27.46995969,177.44,177.37,27.46995969]
[1734898178004,27.46995969,177.44,177.36,27.46995969]
[1734898178514,27.46995969,177.44,177.37,27.46995969]
[1734898178810,27.46995969,177.44,177.36,41.56555969]
[1734898179208,27.46995969,177.39,177.35,200.0]
[1734898179716,27.46995969,177.4,177.35,200.0]
[1734898179893,27.46995969,177.42,177.35,227.46995969]
[1734898180892,27.46995969,177.38,177.35,200.0]
[1734898181127,14.0868,177.47,177.35,200.0]
[1734898181128,27.46995969,177.4,177.35,200.0]
[1734898181333,27.46995969,177.41,177.35,200.0]
[1734898181820,27.46995969,177.43,177.35,227.46995969]
[1734898182521,27.46995969,177.41,177.35,200.0]
[1734898183309,27.46995969,177.44,177.36,27.46995969]
[1734898183796,27.46995969,177.43,177.35,227.46995969]
[1734898183995,27.46995969,177.42,177.35,227.46995969]
[1734898184596,27.46995969,177.44,177.37,27.46995969]
[1734898185222,27.46995969,177.43,177.36,27.46995969]
[1734898186214,41.55885969,177.45,177.38,27.46995969]
[1734898187717,14.0889,177.45,177.39,27.46995969]
[1734898187919,22.570048,177.46,177.4,27.46995969]
[1734898188098,20.0,177.43,177.39,27.46995969]
[1734898189224,20.0,177.43,177.41,27.46995969]
[1734898190835,36.658048,177.46,177.41,27.46995969]
[1734898191804,36.658048,177.46,177.4,27.46995969]
[1734898192004,36.658048,177.46,177.35,200.0]
[1734898192005,27.46995969,177.42,177.35,200.0]
[1734898192229,28.88055969,177.42,177.35,227.46995969]
[1734898192733,27.46995969,177.36,177.35,200.0]
[1734898193033,27.46995969,177.38,177.35,200.0]
[1734898193434,27.46995969,177.39,177.35,200.0]
[1734898193730,27.46995969,177.41,177.35,200.0]
[1734898194837,27.46995969,177.4,177.35,200.0]
[1734898195536,41.56235969,177.4,177.35,200.0]
[1734898195940,27.46995969,177.39,177.35,200.0]
[1734898198920,41.56235969,177.4,177.35,200.0]
[1734898199427,27.46995969,177.39,177.35,200.0]
[1734898200742,20.0,177.36,177.35,200.0]
[1734898201349,41.56235969,177.4,177.35,200.0]
[1734898201643,20.0,177.39,177.35,227.46995969]
[1734898202017,20.0,177.41,177.35,227.46995969]
[1734898202220,20.0,177.4,177.36,27.46995969]
[1734898202652,20.0,177.4,177.35,227.46995969]
[1734898202949,20.0,177.4,177.36,27.46995969]
[1734898203940,22.570048,177.46,177.39,27.46995969]
[1734898204239,27.46995969,177.48,177.41,27.46995969]
[1734898204439,13.21980511,177.51,177.44,27.46995969]
[1734898204644,27.46995969,177.5,177.44,27.46995969]
[1734898204840,27.46995969,177.48,177.42,27.46995969]
[1734898205146,27.46995969,177.46,177.39,27.46995969]
[1734898205350,27.46995969,177.44,177.37,27.46995969]
[1734898205551,27.46995969,177.46,177.39,27.46995969]
[1734898205754,50.04132669,177.47,177.4,27.46995969]
[1734898205929,50.04132669,177.47,177.41,27.46995969]
[1734898205930,20.0,177.44,177.41,27.46995969]
[1734898206141,20.0,177.44,177.36,1.5288]
[1734898206445,20.0,177.44,177.41,27.46995969]
[1734898206627,27.46995969,177.52,177.43,27.46995969]
[1734898206821,27.46995969,177.52,177.45,27.46995969]
[1734898207023,50.03479769,177.52,177.45,27.46995969]
[1734898207230,27.46995969,177.51,177.45,27.46995969]
[1734898207754,50.03479769,177.52,177.45,27.46995969]
[1734898207952,27.46995969,177.51,177.45,27.46995969]
[1734898208251,22.564838,177.52,177.4,6.2453]
[1734898208252,27.46995969,177.5,177.44,28.97155969]
[1734898208436,27.46995969,177.48,177.41,27.46995969]
[1734898208626,27.46995969,177.47,177.4,35.21685969]
[1734898208827,27.46995969,177.46,177.4,35.21685969]
[1734898209018,27.46995969,177.46,177.4,28.97155969]
[1734898209223,27.46995969,177.47,177.4,28.97155969]
[1734898209723,27.46995969,177.5,177.43,27.46995969]
[1734898209923,27.46995969,177.5,177.4,1.5016]
[1734898209924,27.46995969,177.49,177.42,27.46995969]
[1734898210234,27.46995969,177.48,177.41,27.46995969]
[1734898211965,20.0,177.48,177.42,27.46995969]
[1734898212122,27.46995969,177.49,177.42,27.46995969]
[1734898213150,20.0,177.47,177.43,27.46995969]
[1734898213851,14.0841,177.51,177.45,27.46995969]
[1734898216769,41.55405969,177.51,177.44,27.46995969]
[1734898217042,14.0841,177.51,177.45,27.46995969]
[1734898217247,14.0841,177.51,177.46,27.46995969]
[1734898217434,20.0,177.49,177.46,27.46995969]
[1734898217635,22.564838,177.52,177.46,27.46995969]
[1734898218557,22.564838,177.52,177.41,6.2453]
[1734898218738,4.23510344,177.56,177.51,27.46995969]
[1734898219331,4.23510344,177.56,177.47,27.46995969]
[1734898219332,27.46995969,177.54,177.47,27.46995969]
[1734898219528,27.46995969,177.53,177.46,27.46995969]
[1734898219746,27.46995969,177.52,177.45,28.97155969]
[1734898220456,27.46995969,177.53,177.46,27.46995969]
[1734898220764,27.46995969,177.54,177.47,27.46995969]
[1734898221259,27.46995969,177.55,177.48,27.46995969]
[1734898221466,14.0803,177.56,177.49,27.46995969]
[1734898221763,27.46995969,177.55,177.48,27.46995969]
[1734898222136,27.46995969,177.54,177.47,27.46995969]
[1734898222336,27.46995969,177.52,177.45,28.97155969]
[1734898222768,27.46995969,177.51,177.45,1.5016]
[1734898222959,27.46995969,177.53,177.46,27.46995969]
[1734898223963,27.46995969,177.52,177.45,28.97155969]
[1734898224667,27.46995969,177.53,177.46,27.46995969]
[1734898225010,27.46995969,177.52,177.45,28.97155969]
[1734898226366,27.46995969,177.54,177.47,27.46995969]
[1734898226940,26.79472144,177.57,177.5,27.46995969]
[1734898227149,26.79472144,177.57,177.51,27.46995969]
[1734898227440,22.559618,177.57,177.52,27.46995969]
[1734898227659,40.24990354,177.6,177.53,27.46995969]
[1734898228049,12.77994385,177.6,177.55,27.46995969]
[1734898228251,12.77994385,177.6,177.56,27.46995969]
[1734898228652,4.23510344,177.6,177.56,27.46995969]
[1734898228864,27.46995969,177.63,177.56,27.46995969]
[1734898229265,36.0148001,177.64,177.57,27.46995969]
[1734898229493,36.0148001,177.64,177.58,27.46995969]
[1734898229781,36.0148001,177.64,177.53,9.4665]
[1734898229782,27.46995969,177.64,177.57,27.46995969]
[1734898230354,27.46995969,177.63,177.56,27.46995969]
[1734898230552,27.46995969,177.59,177.53,1.5665]
[1734898230775,27.46995969,177.66,177.53,1.5665]
[1734898230776,27.46995969,177.58,177.53,1.5665]
[1734898231191,27.46995969,177.6,177.53,29.03645969]
[1734898231498,27.46995969,177.59,177.53,1.5665]
[1734898232205,27.46995969,177.57,177.53,1.5665]
[1734898232373,27.46995969,177.54,177.48,1.5665]
[1734898232695,27.46995969,177.52,177.48,1.5665]
[1734898233459,27.46995969,177.51,177.45,6.3392]
[1734898233668,27.46995969,177.57,177.43,1.5665]
[1734898233669,27.46995969,177.49,177.43,1.5665]
[1734898233972,27.46995969,177.51,177.44,27.46995969]
[1734898234586,27.46995969,177.52,177.45,27.46995969]
[1734898234961,27.46995969,177.51,177.45,27.46995969]
[1734898235186,27.46995969,177.52,177.45,27.46995969]
[1734898235363,27.46995969,177.53,177.46,27.46995969]
[1734898235564,27.46995969,177.55,177.48,27.46995969]
[1734898236187,27.46995969,177.53,177.46,27.46995969]
[1734898239170,27.46995969,177.54,177.47,27.46995969]
[1734898239605,27.46995969,177.53,177.46,27.46995969]
[1734898241001,27.46995969,177.51,177.44,27.46995969]
[1734898241204,27.46995969,177.5,177.43,29.03645969]
[1734898242198,27.46995969,177.51,177.44,27.46995969]
[1734898243385,27.46995969,177.52,177.45,27.46995969]
[1734898243880,27.46995969,177.54,177.47,27.46995969]
[1734898244505,27.46995969,177.53,177.46,27.46995969]
[1734898245877,27.46995969,177.52,177.44,27.46995969]
[1734898246701,27.46995969,177.52,177.45,27.46995969]
[1734898247306,27.46995969,177.52,177.44,27.46995969]
[1734898247492,27.46995969,177.51,177.44,27.46995969]
[1734898248907,27.46995969,177.5,177.43,29.03645969]
[1734898249084,27.46995969,177.51,177.44,27.46995969]
[1734898249483,47.46995969,177.52,177.44,27.46995969]
[1734898250307,47.46995969,177.52,177.43,1.5665]
[1734898250308,47.46995969,177.52,177.45,27.46995969]
[1734898250489,47.46995969,177.52,177.44,27.46995969]
[1734898251283,27.46995969,177.51,177.44,27.46995969]
[1734898251480,27.46995969,177.51,177.43,29.03645969]
[1734898251783,27.46995969,177.45,177.39,1.6448]
[1734898251982,20.0,177.52,177.35,200.0]
[1734898251983,27.46995969,177.4,177.35,200.0]
[1734898253008,27.46995969,177.42,177.35,227.46995969]
[1734898253205,27.46995969,177.43,177.36,27.46995969]
[1734898253778,27.46995969,177.44,177.37,27.46995969]
[1734898255205,41.55695969,177.47,177.39,27.46995969]
[1734898255506,27.46995969,177.45,177.38,27.46995969]
[1734898255707,27.46995969,177.44,177.37,27.46995969]
[1734898256207,14.087,177.47,177.38,27.46995969]
[1734898256208,27.46995969,177.45,177.38,27.46995969]
[1734898257310,41.55695969,177.47,177.39,27.46995969]
[1734898257608,27.46995969,177.48,177.41,27.46995969]
[1734898258111,27.46995969,177.46,177.38,27.46995969]
[1734898258275,27.46995969,177.47,177.39,27.46995969]
[1734898258609,27.46995969,177.47,177.4,27.46995969]
[1734898258780,27.46995969,177.47,177.39,27.46995969]
[1734898258982,27.46995969,177.47,177.4,27.46995969]
[1734898259397,20.0,177.47,177.4,27.46995969]
[1734898259603,27.46995969,177.49,177.42,27.46995969]
[1734898259805,27.46995969,177.47,177.39,27.46995969]
[1734898260483,27.46995969,177.45,177.37,27.46995969]
[1734898260793,27.46995969,177.46,177.39,27.46995969]
[1734898261209,14.0865,177.48,177.42,27.46995969]
[1734898261583,20.0,177.45,177.42,27.46995969]
[1734898261785,41.55645969,177.48,177.35,200.0]
[1734898261986,41.55645969,177.48,177.41,27.46995969]
[1734898262209,14.0865,177.48,177.42,27.46995969]
[1734898263079,20.0,177.47,177.42,27.46995969]
[1734898265203,20.0,177.46,177.42,27.46995969]
[1734898265401,20.0,177.44,177.37,27.46995969]
[1734898265711,20.0,177.41,177.36,27.46995969]
[1734898266293,20.0,177.42,177.38,27.46995969]
[1734898266895,20.0,177.43,177.38,27.46995969]
[1734898268417,20.0,177.43,177.37,27.46995969]
[1734898268620,20.0,177.42,177.37,27.46995969]
[1734898269713,20.0,177.44,177.38,27.46995969]
[1734898269921,20.0,177.44,177.4,27.46995969]
[1734898270417,20.0,177.43,177.39,27.46995969]
[1734898270606,27.46995969,177.44,177.35,200.0]
[1734898270806,41.55865969,177.45,177.38,27.46995969]
[1734898271218,14.0887,177.45,177.38,27.46995969]
[1734898271522,41.55585969,177.49,177.42,27.46995969]
[1734898271729,27.46995969,177.47,177.35,200.0]
[1734898272023,27.46995969,177.45,177.38,27.46995969]
[1734898272321,27.46995969,177.46,177.38,27.46995969]
[1734898272526,27.46995969,177.46,177.39,27.46995969]
[1734898273522,27.46995969,177.45,177.38,27.46995969]
[1734898273819,27.46995969,177.44,177.37,27.46995969]
[1734898274025,27.46995969,177.45,177.38,27.46995969]
[1734898274925,5.64666338,177.51,177.36,27.46995969]
[1734898274926,28.88055969,177.43,177.36,27.46995969]
[1734898275236,27.46995969,177.39,177.35,200.0]
[1734898275530,47.46995969,177.4,177.35,200.0]
[1734898276202,61.56295969,177.4,177.35,200.0]
[1734898277135,27.46995969,177.39,177.35,200.0]
[1734898277340,27.7999,177.36,177.35,200.0]
[1734898277702,55.26985969,177.36,177.35,200.0]
[1734898279333,55.26985969,177.36,177.35,172.52016103]
[1734898281108,53.85925969,177.36,177.35,171.10956103]
[1734898281306,53.85925969,177.36,177.35,143.53406103]
[1734898281505,53.85925969,177.36,177.35,125.15866103]
[1734898281725,53.85925969,177.36,177.35,83.34516103]
[1734898282133,53.85925969,177.36,177.35,60.59476103]
[1734898282437,53.85925969,177.36,177.35,39.40786103]
[1734898282733,53.85925969,177.36,177.35,5.49136103]
[1734898282910,14.0964,177.35,177.34,1.938e-05]
[1734898283106,41.56635969,177.35,177.34,1.938e-05]
[1734898284740,41.56635969,177.35,177.3,1.17e-05]
[1734898285063,27.46995969,177.31,177.3,1.17e-05]
[1734898285335,61.13491938,177.31,177.3,1.17e-05]
[1734898286647,20.2945,177.31,177.3,1.17e-05]
[1734898286815,47.76445969,177.31,177.3,1.17e-05]
[1734898287640,75.23441938,177.31,177.3,1.17e-05]
[1734898287836,47.76445969,177.31,177.3,1.17e-05]
[1734898288533,92.18441938,177.31,177.3,1.17e-05]
[1734898289839,16.95,177.27,177.26,1.17e-05]
[1734898290042,20.0,177.2,177.16,0.0717719]
[1734898290247,28.44552096,177.24,177.16,0.0717719]
[1734898290248,27.46995969,177.19,177.16,0.0717719]
[1734898290427,24.78213631,177.23,177.16,0.0717719]
[1734898290625,20.0,177.23,177.16,0.0717719]
[1734898291141,12.5727,177.3,177.17,1.6238]
[1734898291339,14.0995,177.31,177.18,6.1793]
[1734898291546,2.259825,177.34,177.27,27.46995969]
[1734898291729,2.259825,177.34,177.3,27.46995969]
[1734898291935,27.46995969,177.38,177.3,27.46995969]
[1734898292130,27.46995969,177.37,177.3,27.46995969]
[1734898292330,27.46995969,177.36,177.29,27.46995969]
[1734898293355,27.46995969,177.36,177.28,27.46995969]
[1734898293846,27.46995969,177.35,177.28,27.46995969]
[1734898294229,27.46995969,177.36,177.29,27.46995969]
[1734898294428,27.46995969,177.35,177.29,27.46995969]
[1734898294629,27.46995969,177.35,177.28,27.46995969]
[1734898294850,27.46995969,177.32,177.26,1.6238]
[1734898295237,27.46995969,177.35,177.28,27.46995969]
[1734898295951,47.46995969,177.34,177.28,27.46995969]
[1734898296154,47.46995969,177.34,177.27,27.46995969]
[1734898296456,27.46995969,177.33,177.26,29.09375969]
[1734898296622,27.46995969,177.3,177.26,1.6238]
[1734898296826,27.46995969,177.29,177.26,1.6238]
[1734898297023,27.46995969,177.29,177.22,1.6238]
[1734898298659,20.0,177.29,177.25,27.46995969]
[1734898298830,20.0,177.29,177.25,26.96995969]
[1734898299031,20.0,177.29,177.24,27.46995969]
[1734898299458,6.3934,177.38,177.28,27.46995969]
[1734898299629,27.46995969,177.36,177.29,27.46995969]
[1734898299827,6.3934,177.38,177.31,27.46995969]
[1734898299828,27.46995969,177.38,177.31,27.46995969]
[1734898300048,4.24001596,177.39,177.33,27.46995969]
[1734898300255,4.24001596,177.39,177.35,27.46995969]
[1734898300431,4.24001596,177.39,177.36,27.46995969]
[1734898300633,27.46995969,177.46,177.38,27.46995969]
[1734898300857,4.24001596,177.5,177.41,27.46995969]
[1734898301025,4.24001596,177.5,177.46,27.46995969]
[1734898301237,4.24001596,177.5,177.49,27.46995969]
[1734898301535,8.47780348,177.54,177.49,27.46995969]
[1734898301735,4.24001596,177.57,177.51,27.46995969]
[1734898301951,4.24001596,177.57,177.52,27.46995969]
[1734898302849,4.24001596,177.57,177.51,27.46995969]
[1734898303468,27.46995969,177.58,177.5,27.46995969]
[1734898303669,27.46995969,177.55,177.48,27.46995969]
[1734898303960,27.46995969,177.49,177.4,27.46995969]
[1734898304162,44.69226071,177.48,177.4,44.69226071]
[1734898304451,44.69226071,177.48,177.39,1.6238]
[1734898304657,44.69226071,177.51,177.43,44.69226071]
[1734898304980,20.0,177.48,177.43,44.69226071]
[1734898305334,20.0,177.48,177.42,44.69226071]
[1734898305658,64.69226071,177.48,177.41,44.69226071]
[1734898306239,44.69226071,177.5,177.41,44.69226071]
[1734898306465,44.69226071,177.48,177.41,44.69226071]
[1734898306755,44.69226071,177.5,177.43,44.69226071]
[1734898306944,44.69226071,177.52,177.43,44.69226071]
[1734898307130,20.0,177.49,177.43,44.69226071]
[1734898310657,44.69226071,177.52,177.45,44.69226071]
[1734898311355,44.69226071,177.54,177.47,44.69226071]
[1734898311661,14.0763,177.61,177.4,23.776884]
[1734898311662,44.69226071,177.57,177.49,44.69226071]
[1734898312449,44.69226071,177.58,177.5,46.32086071]
[1734898312645,44.69226071,177.6,177.52,44.69226071]
[1734898312851,44.69226071,177.62,177.54,44.69226071]
[1734898313048,44.69226071,177.65,177.5,7.6569]
[1734898313254,44.69226071,177.66,177.58,44.69226071]
[1734898313552,44.69226071,177.66,177.59,44.69226071]
[1734898313751,44.69226071,177.66,177.58,44.69226071]
[1734898313939,44.69226071,177.66,177.59,44.69226071]
[1734898314144,44.69226071,177.67,177.59,44.69226071]
[1734898314567,44.69226071,177.67,177.6,44.69226071]
[1734898314863,44.69226071,177.67,177.5,21.7406]
[1734898314864,44.69226071,177.69,177.62,46.32086071]
[1734898315098,44.69226071,177.71,177.64,44.69226071]
[1734898315246,44.69226071,177.72,177.65,44.69226071]
[1734898315444,44.69226071,177.7,177.63,50.72056071]